bitfinex/quotes_BTCUSD_20250414
["timestamp","ask_amount","ask_price","bid_price","bid_amount"]
[1744620058804,0.00023756,84709.0,84708.0,0.20524721]
[1744620058998,0.00023756,84709.0,84708.0,0.2052472]
[1744620059199,0.04743756,84709.0,84708.0,0.01636319]
[1744620059431,0.19029868,84709.0,84708.0,0.01636318]
[1744620059640,0.19029868,84709.0,84708.0,0.01015644]
[1744620060117,0.19029868,84709.0,84708.0,0.00815644]
[1744620060544,0.19029868,84709.0,84708.0,0.00315644]
[1744620067659,0.14309868,84709.0,84708.0,0.00315644]
[1744620067860,0.02225714,84709.0,84708.0,0.00315644]
[1744620068060,0.02225714,84709.0,84708.0,0.00941019]
[1744620068462,0.00023756,84709.0,84708.0,0.00941019]
[1744620069365,0.00023756,84709.0,84708.0,0.00941018]
[1744620070537,0.00023756,84709.0,84708.0,0.14479257]
[1744620070791,0.00023756,84709.0,84708.0,0.14479256]
[1744620070928,0.00023756,84709.0,84708.0,0.14479255]
[1744620071896,0.00023756,84709.0,84708.0,0.14579255]
[1744620072059,0.00023756,84709.0,84708.0,0.14579254]
[1744620073084,0.00023756,84709.0,84708.0,0.01041014]
[1744620073504,0.00023756,84709.0,84708.0,0.01041013]
[1744620073505,0.18911856,84709.0,84708.0,0.01041013]
[1744620073693,0.00023756,84709.0,84708.0,0.01041013]
[1744620073835,0.00023756,84709.0,84708.0,0.00415638]
[1744620076655,0.00023756,84709.0,84708.0,0.19928591]
[1744620076869,0.00023756,84709.0,84708.0,0.19304037]
[1744620077089,0.00023756,84709.0,84708.0,0.19927247]
[1744620077227,0.00023756,84709.0,84708.0,0.01038847]
[1744620077421,0.00023756,84709.0,84708.0,0.01038846]
[1744620077848,0.00023756,84709.0,84708.0,0.00415634]
[1744620079777,0.04833756,84709.0,84708.0,0.00415634]
[1744620080154,0.00023756,84709.0,84708.0,0.00415634]
[1744620080382,0.18911856,84709.0,84708.0,0.00991974]
[1744620080784,0.18911856,84709.0,84708.0,0.00891974]
[1744620080965,0.18911856,84709.0,84708.0,0.00315634]
[1744620081567,0.18911856,84709.0,84708.0,0.00892763]
[1744620083236,0.18911856,84709.0,84708.0,0.00315634]
[1744620088249,0.18911856,84709.0,84708.0,0.00315633]
[1744620088834,0.00023756,84709.0,84708.0,0.00315633]
[1744620089006,0.00023756,84709.0,84708.0,0.00892762]
[1744620089422,0.00023756,84709.0,84708.0,0.00315633]
[1744620092492,0.00023756,84709.0,84708.0,0.00892762]
[1744620092760,0.00023756,84709.0,84708.0,0.19204033]
[1744620092951,0.00023756,84709.0,84708.0,0.23804032]
[1744620093171,0.00023756,84709.0,84708.0,0.24377136]
[1744620093398,0.00023756,84709.0,84708.0,0.24377134]
[1744620093622,0.00023756,84709.0,84708.0,0.24377132]
[1744620094039,0.00023756,84709.0,84708.0,0.36461286]
[1744620094280,0.00023756,84709.0,84708.0,0.38015366]
[1744620094412,0.00023756,84709.0,84708.0,0.37915363]
[1744620094621,0.00023756,84709.0,84708.0,0.37915361]
[1744620094909,0.00023756,84709.0,84708.0,0.42985357]
[1744620095057,0.00023756,84709.0,84708.0,0.42985355]
[1744620095286,0.00023756,84709.0,84708.0,0.42985352]
[1744620095482,0.00023756,84709.0,84708.0,0.42985351]
[1744620095884,0.00023756,84709.0,84708.0,0.4298535]
[1744620096098,0.00023756,84709.0,84708.0,0.42885348]
[1744620096297,0.00023756,84709.0,84708.0,0.43185346]
[1744620096508,0.00023756,84709.0,84708.0,0.43185345]
[1744620097542,0.00023756,84709.0,84708.0,0.43185344]
[1744620097749,0.00023756,84709.0,84708.0,0.43285344]
[1744620098569,0.00023756,84709.0,84708.0,0.43285342]
[1744620098974,0.00023756,84709.0,84708.0,0.43285341]
[1744620099153,0.00023756,84709.0,84708.0,0.4328534]
[1744620099354,0.00023756,84709.0,84708.0,0.43285339]
[1744620099758,0.00023756,84709.0,84708.0,0.43285338]
[1744620100196,0.00023756,84709.0,84708.0,0.43285337]
[1744620100350,0.00023756,84709.0,84708.0,0.43285336]
[1744620100972,0.00023756,84709.0,84708.0,0.43285334]
[1744620101379,0.00023756,84709.0,84708.0,0.43285333]
[1744620101579,0.00023756,84709.0,84708.0,0.43285331]
[1744620101999,0.00023756,84709.0,84708.0,0.4328533]
[1744620103003,0.00023756,84709.0,84708.0,0.43285329]
[1744620103750,0.00023756,84709.0,84708.0,0.43285328]
[1744620104967,0.00023756,84709.0,84708.0,0.43285327]
[1744620105369,0.00023756,84709.0,84708.0,0.43285326]
[1744620105726,0.00023756,84709.0,84708.0,0.43285325]
[1744620106173,0.00023756,84709.0,84708.0,0.24777086]
[1744620106380,0.00023756,84709.0,84708.0,0.24777084]
[1744620106555,0.00023756,84709.0,84708.0,0.24777083]
[1744620107859,0.00023756,84709.0,84708.0,0.24777082]
[1744620108096,0.00023756,84709.0,84708.0,0.24777081]
[1744620108674,0.00023756,84709.0,84708.0,0.2477708]
[1744620109072,0.00023756,84709.0,84708.0,0.2017708]
[1744620109503,0.00023756,84709.0,84708.0,0.20177079]
[1744620109839,0.00023756,84709.0,84708.0,0.20177078]
[1744620110438,0.00023756,84709.0,84708.0,0.20177077]
[1744620112224,0.00023756,84709.0,84708.0,0.20177076]
[1744620113666,0.00023756,84709.0,84708.0,0.20177075]
[1744620113872,0.00023756,84709.0,84708.0,0.38705313]
[1744620114090,0.00023756,84709.0,84708.0,0.38705312]
[1744620114711,0.00023756,84709.0,84708.0,0.38705311]
[1744620115210,0.00023756,84709.0,84708.0,0.38605311]
[1744620115976,0.00023756,84709.0,84708.0,0.3860531]
[1744620116195,0.00023756,84709.0,84708.0,0.3830531]
[1744620116402,0.00023756,84709.0,84708.0,0.3860531]
[1744620116605,0.14064,84732.0,84725.0,0.011802]
[1744620116767,0.14077848,84732.0,84729.0,0.200639]
[1744620116975,0.14077848,84732.0,84729.0,0.20379459]
[1744620117818,0.00013848,84732.0,84731.0,0.188832]
[1744620118033,0.00013848,84732.0,84731.0,0.19698788]
[1744620118211,0.02220202,84732.0,84731.0,0.19698787]
[1744620119011,0.02220202,84732.0,84731.0,0.00815586]
[1744620121206,0.02220202,84732.0,84731.0,0.19698786]
[1744620121416,0.02220202,84732.0,84731.0,0.24408784]
[1744620121638,0.02220202,84732.0,84731.0,0.24408783]
[1744620122205,0.00013848,84732.0,84731.0,0.24408782]
[1744620122461,0.00013848,84732.0,84731.0,0.42877021]
[1744620122822,0.00013848,84732.0,84731.0,0.41422936]
[1744620123019,0.00013848,84732.0,84731.0,0.19698776]
[1744620123345,0.00013848,84732.0,84731.0,0.19698768]
[1744620123541,0.00013848,84732.0,84731.0,0.19698766]
[1744620123772,0.00013848,84732.0,84731.0,0.19798766]
[1744620123972,0.00013848,84732.0,84731.0,0.19798765]
[1744620125451,0.00013848,84732.0,84731.0,0.19798764]
[1744620125859,0.00013848,84732.0,84731.0,0.19798763]
[1744620126123,0.00013848,84732.0,84731.0,0.19798762]
[1744620126938,0.00013848,84732.0,84731.0,0.19798761]
[1744620127972,0.00013848,84732.0,84731.0,0.1979876]
[1744620130133,0.00013848,84732.0,84731.0,0.19798759]
[1744620131526,0.00013848,84732.0,84731.0,0.19798758]
[1744620132962,0.00013848,84732.0,84731.0,0.00915558]
[1744620133119,0.00013848,84732.0,84731.0,0.19798757]
[1744620133527,0.00013848,84732.0,84731.0,0.38473029]
[1744620133702,0.00013848,84732.0,84731.0,0.38236993]
[1744620134316,0.00013848,84732.0,84731.0,0.38236992]
[1744620135211,0.00013848,84732.0,84731.0,0.38236991]
[1744620135402,0.00013848,84732.0,84731.0,0.38236989]
[1744620135765,0.00013848,84732.0,84731.0,0.38236988]
[1744620135960,0.00013848,84732.0,84731.0,0.38236987]
[1744620136370,0.00013848,84732.0,84731.0,0.42816986]
[1744620136571,0.00013848,84732.0,84731.0,0.42716986]
[1744620136772,0.00013848,84732.0,84731.0,0.43416985]
[1744620137138,0.00013848,84732.0,84731.0,0.43216985]
[1744620137280,0.00013848,84732.0,84731.0,0.43216984]
[1744620137683,0.00013848,84732.0,84731.0,0.43416983]
[1744620138323,0.00013848,84732.0,84731.0,0.42916983]
[1744620138639,0.00013848,84732.0,84731.0,0.43416983]
[1744620139682,0.00013848,84732.0,84731.0,0.43416982]
[1744620141917,0.00013848,84732.0,84731.0,0.4341698]
[1744620143016,0.00013848,84732.0,84731.0,0.43416979]
[1744620143483,0.00013848,84732.0,84731.0,0.43416978]
[1744620144459,0.00013848,84732.0,84731.0,0.43416977]
[1744620145317,0.00013848,84732.0,84731.0,0.38836977]
[1744620145523,0.00013848,84732.0,84731.0,0.38836976]
[1744620145944,0.00013848,84732.0,84731.0,0.38836975]
[1744620147653,0.00013848,84732.0,84731.0,0.38836974]
[1744620148571,0.00013848,84732.0,84731.0,0.38836973]
[1744620150300,0.00013848,84732.0,84731.0,0.38836972]
[1744620152239,0.00013848,84732.0,84731.0,0.38836971]
[1744620153879,0.00013848,84732.0,84731.0,0.3883697]
[1744620154946,0.00013848,84732.0,84731.0,0.38836969]
[1744620157283,0.00013848,84732.0,84731.0,0.38836968]
[1744620158154,0.00013848,84732.0,84731.0,0.38836967]
[1744620159344,0.00013848,84732.0,84731.0,0.38836966]
[1744620161999,0.00013848,84732.0,84731.0,0.38836965]
[1744620164804,0.00013848,84732.0,84731.0,0.38836964]
[1744620165326,0.00013848,84732.0,84731.0,0.20398725]
[1744620165564,0.04703848,84732.0,84731.0,0.01515524]
[1744620165967,0.23586848,84732.0,84731.0,0.01515524]
[1744620166273,0.06915802,84732.0,84731.0,0.01501912]
[1744620166690,0.02225802,84732.0,84731.0,0.20385112]
[1744620166859,0.02225802,84732.0,84731.0,0.20385111]
[1744620167245,0.02225802,84732.0,84731.0,0.2018511]
[1744620167601,0.02225802,84732.0,84731.0,0.1988511]
[1744620167602,0.00013848,84732.0,84731.0,0.1988511]
[1744620168137,0.00013848,84732.0,84731.0,0.0080191]
[1744620168323,0.00013848,84732.0,84731.0,0.0090191]
[1744620169036,0.02223209,84732.0,84731.0,0.0090191]
[1744620170400,0.00013848,84732.0,84731.0,0.0090191]
[1744620172042,0.00013848,84732.0,84731.0,0.00901909]
[1744620173564,0.00013848,84732.0,84731.0,0.00801909]
[1744620173838,0.00013848,84732.0,84731.0,0.00901909]
[1744620177967,6.058e-05,84734.0,84732.0,0.18883]
[1744620178130,6.058e-05,84734.0,84732.0,0.19124915]
[1744620178331,6.058e-05,84734.0,84733.0,0.00561165]
[1744620178527,6.058e-05,84734.0,84733.0,0.0080308]
[1744620178772,0.02214549,84734.0,84733.0,0.0080308]
[1744620180060,0.02214549,84734.0,84733.0,0.0090308]
[1744620184921,0.02214549,84734.0,84733.0,0.00341915]
[1744620185413,0.02214549,84734.0,84733.0,0.00903549]
[1744620185625,0.03318766,84734.0,84733.0,0.00903549]
[1744620189467,0.03318766,84734.0,84733.0,0.00341915]
[1744620191916,0.03318766,84734.0,84733.0,0.00341914]
[1744620192327,0.03318766,84734.0,84733.0,0.00241914]
[1744620194680,0.03318766,84734.0,84733.0,0.00805938]
[1744620194681,0.22201366,84734.0,84733.0,0.00805938]
[1744620194886,0.22201366,84734.0,84733.0,0.00241914]
[1744620196954,0.03318766,84734.0,84733.0,0.00241914]
[1744620197346,0.03318766,84734.0,84733.0,0.00805938]
[1744620197550,0.03318766,84734.0,84733.0,0.19124714]
[1744620197798,0.03318766,84734.0,84733.0,0.19688738]
[1744620197983,0.03318766,84734.0,84733.0,0.19688737]
[1744620198737,0.03318766,84734.0,84733.0,0.19688736]
[1744620200040,0.03318766,84734.0,84733.0,0.19688735]
[1744620200228,0.03318766,84734.0,84733.0,0.00805935]
[1744620204939,0.03318766,84734.0,84733.0,0.00241911]
[1744620206330,0.08088766,84734.0,84733.0,0.00241911]
[1744620206468,0.22128766,84734.0,84733.0,0.00241911]
[1744620207276,0.17358766,84734.0,84733.0,0.00241911]
[1744620207762,0.14046058,84734.0,84733.0,0.00241911]
[1744620207907,6.058e-05,84734.0,84733.0,0.00241911]
[1744620208237,0.02215234,84734.0,84733.0,0.05555088]
[1744620208531,6.058e-05,84734.0,84733.0,0.05835672]
[1744620208737,6.058e-05,84734.0,84733.0,0.05835671]
[1744620209455,6.058e-05,84734.0,84733.0,0.01085671]
[1744620210185,0.01110682,84734.0,84733.0,0.01085671]
[1744620211211,0.01110682,84734.0,84733.0,0.19968471]
[1744620211695,0.01110682,84734.0,84733.0,0.1996847]
[1744620212759,0.01110682,84734.0,84733.0,0.19968469]
[1744620213020,6.058e-05,84734.0,84733.0,0.19968468]
[1744620214525,0.0111071,84734.0,84733.0,0.19968468]
[1744620214933,0.0111071,84734.0,84733.0,0.19968467]
[1744620215232,0.0111071,84734.0,84733.0,0.24798466]
[1744620215439,0.0111071,84734.0,84733.0,0.24798464]
[1744620215615,6.058e-05,84734.0,84733.0,0.24798464]
[1744620215818,6.058e-05,84734.0,84733.0,0.01085664]
[1744620216018,6.058e-05,84734.0,84733.0,0.01085663]
[1744620218889,6.058e-05,84734.0,84733.0,0.05795663]
[1744620221578,6.058e-05,84734.0,84733.0,0.05795662]
[1744620223313,6.058e-05,84734.0,84733.0,0.05513541]
[1744620224439,0.01110964,84734.0,84733.0,0.05513541]
[1744620226298,6.058e-05,84734.0,84733.0,0.05513541]
[1744620226803,6.058e-05,84734.0,84733.0,0.0551354]
[1744620230372,6.058e-05,84734.0,84733.0,0.0571354]
[1744620230572,6.058e-05,84734.0,84733.0,0.05713539]
[1744620231194,0.13809557,84743.0,84742.0,0.188808]
[1744620231396,0.13809557,84743.0,84742.0,0.19122698]
[1744620231555,0.13809557,84743.0,84742.0,0.19685762]
[1744620231761,0.13809557,84743.0,84742.0,0.19685761]
[1744620232215,0.13809557,84743.0,84742.0,0.19594367]
[1744620232443,0.13809557,84743.0,84742.0,0.19594366]
[1744620233936,0.13809557,84743.0,84742.0,0.19594365]
[1744620234133,0.13809557,84743.0,84742.0,0.24104364]
[1744620234282,0.13809557,84743.0,84742.0,0.24104363]
[1744620234705,0.13809557,84743.0,84742.0,0.24104362]
[1744620235723,0.13809557,84743.0,84742.0,0.24104361]
[1744620236033,0.0004223,84746.0,84745.0,0.188801]
[1744620236274,0.0004223,84746.0,84745.0,0.19030597]
[1744620236449,0.0004223,84746.0,84745.0,0.19593883]
[1744620237153,0.0004223,84746.0,84745.0,0.19569912]
[1744620237967,0.0004223,84746.0,84745.0,0.19569911]
[1744620240614,0.0004223,84746.0,84745.0,0.1956991]
[1744620240766,0.0004223,84746.0,84745.0,0.00713781]
[1744620241155,0.0004223,84746.0,84745.0,0.19593881]
[1744620242187,0.0004223,84746.0,84745.0,0.1959388]
[1744620243917,0.0004223,84746.0,84745.0,0.19593879]
[1744620245778,0.0004223,84746.0,84745.0,0.19593878]
[1744620247743,0.0004223,84746.0,84745.0,0.29253878]
[1744620247945,0.0004223,84746.0,84745.0,0.29529803]
[1744620248180,0.0004223,84746.0,84745.0,0.29529802]
[1744620248571,0.0004223,84746.0,84745.0,0.29529801]
[1744620250429,0.0004223,84746.0,84745.0,0.295298]
[1744620251892,0.0004223,84746.0,84745.0,0.245698]
[1744620252351,0.0004223,84746.0,84745.0,0.24569799]
[1744620254002,0.0004223,84746.0,84745.0,0.24569798]
[1744620255321,0.0004223,84746.0,84745.0,0.24669797]
[1744620256832,0.0004223,84746.0,84745.0,0.24669796]
[1744620257391,0.00340549,84750.0,84749.0,0.188792]
[1744620257589,0.00340549,84750.0,84749.0,0.19029683]
[1744620257792,0.00340549,84750.0,84749.0,0.19873918]
[1744620259358,0.00340549,84750.0,84749.0,0.20109902]
[1744620259675,0.00340549,84750.0,84749.0,0.25537078]
[1744620259888,0.00340549,84750.0,84749.0,0.25301093]
[1744620260225,0.00340549,84750.0,84749.0,0.43719331]
[1744620260431,0.00340549,84750.0,84749.0,0.42982153]
[1744620260631,0.00340549,84750.0,84749.0,0.42982152]
[1744620260878,0.00340549,84750.0,84749.0,0.42982151]
[1744620261451,0.00340549,84750.0,84749.0,0.43182149]
[1744620261985,0.00340549,84750.0,84749.0,0.76982149]
[1744620262231,0.00340549,84750.0,84749.0,0.77582148]
[1744620262351,0.00340549,84750.0,84749.0,0.77282147]
[1744620262572,0.00340549,84750.0,84749.0,0.78082147]
[1744620262772,0.0006,84760.0,84756.0,0.29861785]
[1744620262995,0.0006,84760.0,84756.0,0.4209641]
[1744620263225,0.0006,84760.0,84759.0,0.54331085]
[1744620263455,0.0010615,84760.0,84759.0,1.17855707]
[1744620263654,0.0010615,84760.0,84759.0,1.186705]
[1744620263892,0.0010615,84760.0,84759.0,1.32690499]
[1744620264093,0.0010615,84760.0,84759.0,1.32690498]
[1744620264256,0.0010615,84760.0,84759.0,1.32690497]
[1744620264451,0.0010615,84760.0,84759.0,1.32690496]
[1744620264903,0.0004221,84766.0,84765.0,0.63739785]
[1744620265072,0.00056049,84766.0,84765.0,0.75974399]
[1744620265273,0.00056049,84766.0,84765.0,0.76621978]
[1744620265478,0.00056049,84766.0,84765.0,0.76621977]
[1744620265675,0.00056049,84766.0,84765.0,0.76621976]
[1744620265855,0.00056049,84766.0,84765.0,0.91827511]
[1744620266056,0.00056049,84766.0,84765.0,0.9232751]
[1744620266479,0.00056049,84766.0,84765.0,0.92327509]
[1744620266817,0.00056049,84766.0,84765.0,0.91827509]
[1744620267020,4.9e-07,84766.0,84765.0,1.33697508]
[1744620267235,0.0126482,84783.0,84776.0,0.188732]
[1744620267447,0.0126482,84783.0,84776.0,0.83931889]
[1744620267642,0.0126482,84783.0,84776.0,0.84467842]
[1744620267812,0.0126482,84783.0,84776.0,0.84467841]
[1744620268018,0.0126482,84783.0,84776.0,0.8446784]
[1744620268969,0.0126482,84783.0,84776.0,0.85267838]
[1744620269480,0.0126482,84783.0,84776.0,0.85267837]
[1744620270079,0.0126482,84783.0,84776.0,0.85267836]
[1744620270978,0.0126482,84783.0,84776.0,0.85267835]
[1744620272105,0.0126482,84783.0,84776.0,0.85267834]
[1744620273088,0.0126482,84783.0,84776.0,0.85267833]
[1744620274088,3e-07,84777.0,84776.0,1.19267833]
[1744620274375,3e-07,84777.0,84776.0,1.19267831]
[1744620274563,3e-07,84777.0,84776.0,1.19267829]
[1744620275175,3e-07,84777.0,84776.0,1.18467829]
[1744620275381,3e-07,84777.0,84776.0,1.19467829]
[1744620276297,3e-07,84777.0,84776.0,1.19467828]
[1744620277084,3e-07,84777.0,84776.0,1.19467827]
[1744620277287,3e-07,84777.0,84776.0,1.19467826]
[1744620277552,0.0126482,84783.0,84776.0,1.19467826]
[1744620277553,6e-07,84780.0,84779.0,0.24916585]
[1744620277753,4.5e-07,84780.0,84779.0,0.42250546]
[1744620277931,9.5e-07,84784.0,84783.0,0.06044085]
[1744620278092,9.5e-07,84784.0,84783.0,0.37628308]
[1744620278291,0.002,84799.0,84783.0,0.37628308]
[1744620278292,1.5e-07,84785.0,84784.0,0.58895485]
[1744620278504,2e-07,84800.0,84799.0,0.44934085]
[1744620278709,2e-07,84800.0,84799.0,0.71966897]
[1744620278944,6.005e-05,84800.0,84799.0,0.71966895]
[1744620279344,0.04885357,84811.0,84810.0,0.54319685]
[1744620279345,5.7e-07,84811.0,84810.0,0.54319685]
[1744620279553,5.7e-07,84811.0,84810.0,1.08273839]
[1744620279810,5.7e-07,84811.0,84810.0,1.09040452]
[1744620280009,5.7e-07,84811.0,84810.0,1.10374014]
[1744620280230,5.7e-07,84811.0,84810.0,1.10374011]
[1744620280531,5.7e-07,84811.0,84810.0,1.10374009]
[1744620280686,5.7e-07,84811.0,84810.0,1.10374007]
[1744620281275,5.7e-07,84811.0,84810.0,1.10374006]
[1744620281510,5.7e-07,84811.0,84810.0,1.11174006]
[1744620281712,5.7e-07,84811.0,84810.0,1.11174005]
[1744620282937,5.7e-07,84811.0,84810.0,1.11174004]
[1744620283161,5.7e-07,84811.0,84810.0,1.10920151]
[1744620283884,5.7e-07,84811.0,84810.0,0.74289555]
[1744620284082,5.7e-07,84811.0,84810.0,0.74289553]
[1744620284282,5.7e-07,84811.0,84810.0,0.74289551]
[1744620284508,5.7e-07,84811.0,84810.0,0.20335397]
[1744620284641,5.7e-07,84811.0,84810.0,0.20335396]
[1744620284847,5.7e-07,84811.0,84810.0,0.01469796]
[1744620285304,5.7e-07,84811.0,84810.0,0.00950404]
[1744620285498,5.7e-07,84811.0,84810.0,0.01480041]
[1744620286067,5.7e-07,84811.0,84810.0,0.00950404]
[1744620286269,0.14320057,84811.0,84810.0,0.00950404]
[1744620286509,0.68054211,84811.0,84810.0,0.00950404]
[1744620286670,0.73014211,84811.0,84810.0,0.00150404]
[1744620286870,1.07014211,84811.0,84810.0,0.00150404]
[1744620287076,1.07014211,84811.0,84810.0,0.00650404]
[1744620287471,1.07014211,84811.0,84810.0,0.00150404]
[1744620288503,0.011794,84786.0,84781.0,0.011795]
[1744620288903,0.011794,84785.0,84782.0,0.00800135]
[1744620289104,0.011794,84786.0,84782.0,0.00800135]
[1744620289306,0.011794,84786.0,84782.0,0.01979535]
[1744620289570,0.011794,84786.0,84783.0,0.011794]
[1744620289800,0.011794,84785.0,84782.0,0.00800135]
[1744620290026,0.200506,84785.0,84783.0,0.00803479]
[1744620290240,0.188719,84782.0,84781.0,0.005]
[1744620290455,0.011795,84778.0,84775.0,0.011795]
[1744620290665,0.011795,84776.0,84773.0,0.011796]
[1744620290898,0.011795,84777.0,84774.0,0.011796]
[1744620291130,0.011795,84776.0,84766.0,0.200551]
[1744620291370,0.200527,84777.0,84763.0,0.20061685]
[1744620291371,0.011796,84770.0,84763.0,0.20061685]
[1744620291643,0.011796,84770.0,84764.0,0.011797]
[1744620292117,0.011796,84769.0,84766.0,0.011797]
[1744620292355,0.200553,84766.0,84763.0,5.985e-05]
[1744620292819,0.32139454,84766.0,84763.0,5.985e-05]
[1744620293508,0.32139454,84766.0,84763.0,0.00505985]
[1744620293759,0.1432,84765.0,84763.0,0.00505985]
[1744620293966,0.1432,84765.0,84763.0,5.985e-05]
[1744620294373,0.1432,84765.0,84764.0,0.00819361]
[1744620295369,1.10348,84781.0,84775.0,0.200528]
[1744620295589,0.14324,84778.0,84777.0,0.18873]
[1744620296005,0.14324,84778.0,84777.0,0.19690355]
[1744620296222,0.4165,84785.0,84777.0,0.19690355]
[1744620296223,0.4165,84785.0,84777.0,0.00817355]
[1744620296452,0.0455,84793.0,84769.0,0.188748]
[1744620296453,0.14324,84793.0,84792.0,0.188697]
[1744620296874,0.14324,84793.0,84792.0,0.00810333]
[1744620297299,0.011793,84795.0,84790.0,0.188699]
[1744620297508,0.14324,84795.0,84792.0,0.19680501]
[1744620297727,0.14324,84795.0,84792.0,0.188695]
[1744620297971,0.14324,84795.0,84793.0,0.00811001]
[1744620298412,0.07,84794.0,84793.0,0.00811001]
[1744620298580,0.07,84794.0,84789.0,0.188702]
[1744620298736,0.011793,84793.0,84790.0,5.985e-05]
[1744620298941,0.07,84794.0,84791.0,0.188699]
[1744620299147,0.011793,84793.0,84790.0,5.985e-05]
[1744620299987,0.081793,84794.0,84790.0,5.985e-05]
[1744620300912,0.011793,84793.0,84790.0,5.985e-05]
[1744620302143,0.00894014,84793.0,84790.0,5.985e-05]
[1744620303383,0.270486,84794.0,84790.0,0.01185285]
[1744620304267,0.188699,84792.0,84790.0,5.985e-05]
[1744620304819,0.195487,84793.0,84791.0,0.00809196]
[1744620305337,0.081793,84794.0,84791.0,0.00809196]
[1744620305543,0.188696,84793.0,84791.0,0.00809196]
[1744620306455,0.46084154,84792.0,84791.0,0.00809196]
[1744620306649,0.528699,84791.0,84790.0,5.985e-05]
[1744620306888,0.64954054,84791.0,84790.0,5.985e-05]
[1744620307852,0.34,84791.0,84790.0,5.985e-05]
[1744620308068,0.528699,84791.0,84790.0,5.985e-05]
[1744620309563,0.64954054,84791.0,84790.0,5.985e-05]
[1744620314063,0.66054076,84791.0,84790.0,5.985e-05]
[1744620316430,0.01100022,84791.0,84790.0,5.985e-05]
[1744620318031,0.188697,84792.0,84790.0,5.985e-05]
[1744620319996,0.01102393,84791.0,84790.0,5.985e-05]
[1744620322698,0.15446393,84791.0,84790.0,5.985e-05]
[1744620323216,0.14344,84791.0,84790.0,5.985e-05]
[1744620336584,0.14344,84791.0,84790.0,0.0010394]
[1744620341497,0.14344,84791.0,84790.0,0.2348404]
[1744620341703,0.4165,84797.0,84796.0,0.188688]
[1744620341909,0.4165,84797.0,84794.0,0.200483]
[1744620342063,0.4165,84797.0,84796.0,0.00803143]
[1744620342290,0.4165,84797.0,84795.0,0.00807155]
[1744620342431,0.4165,84797.0,84796.0,0.19676289]
[1744620342630,0.4165,84797.0,84796.0,0.00807489]
[1744620342965,0.4165,84797.0,84796.0,0.0484]
[1744620343169,0.4165,84797.0,84796.0,0.05647489]
[1744620345778,0.4165,84797.0,84796.0,0.00807489]
[1744620345962,0.200487,84793.0,84790.0,0.0128324]
[1744620346160,0.200487,84793.0,84791.0,0.00805817]
[1744620346363,0.4165,84797.0,84794.0,0.011793]
[1744620346767,0.011793,84796.0,84795.0,0.00807155]
[1744620346981,0.011793,84795.0,84791.0,0.011793]
[1744620347189,0.4165,84797.0,84795.0,0.188688]
[1744620347508,0.4165,84797.0,84796.0,0.0080448]
[1744620348100,0.14344,84808.0,84807.0,0.188663]
[1744620348271,0.14344,84808.0,84806.0,0.188665]
[1744620348472,0.0004222,84819.0,84810.0,0.188656]
[1744620348872,0.0004222,84819.0,84810.0,0.193046]
[1744620350072,0.0004222,84819.0,84810.0,0.242646]
[1744620350273,0.0004222,84819.0,84810.0,0.290046]
[1744620351805,0.0004222,84819.0,84810.0,0.29102548]
[1744620352016,0.0004222,84819.0,84810.0,0.42640787]
[1744620352218,0.0004222,84819.0,84810.0,0.42640786]
[1744620352830,6e-07,84813.0,84812.0,0.63909285]
[1744620353030,0.0004222,84819.0,84816.0,0.20318385]
[1744620353254,5e-07,84828.0,84826.0,0.01454085]
[1744620353429,5e-07,84828.0,84827.0,0.71285941]
[1744620353636,5e-07,84828.0,84827.0,0.71771251]
[1744620353846,5e-07,84828.0,84827.0,0.37771249]
[1744620354045,5e-07,84828.0,84827.0,0.23619248]
[1744620354372,0.00013882,84828.0,84827.0,0.23619247]
[1744620354949,0.00013882,84828.0,84827.0,0.23619246]
[1744620355553,0.00013882,84828.0,84827.0,0.23854954]
[1744620355774,0.00013882,84828.0,84827.0,0.23619246]
[1744620356053,0.00013882,84828.0,84827.0,0.23619245]
[1744620356276,0.00013882,84828.0,84827.0,0.57619245]
[1744620356671,0.00013882,84828.0,84827.0,0.57619244]
[1744620356888,0.00013882,84828.0,84827.0,0.57619243]
[1744620357559,0.00013882,84828.0,84827.0,0.57619242]
[1744620357765,0.002,84829.0,84828.0,0.54315685]
[1744620357961,3e-07,84835.0,84834.0,0.64144385]
[1744620358240,3e-07,84835.0,84834.0,1.18704865]
[1744620358433,3e-07,84835.0,84834.0,1.18704864]
[1744620358842,3e-07,84835.0,84834.0,1.18704863]
[1744620359046,3e-07,84835.0,84834.0,1.18704861]
[1744620359243,3e-07,84835.0,84834.0,1.1870486]
[1744620359716,3e-07,84835.0,84834.0,1.18704859]
[1744620360313,3e-07,84835.0,84834.0,1.18704858]
[1744620360468,3e-07,84835.0,84834.0,1.18704857]
[1744620360678,3e-07,84835.0,84834.0,0.41380772]
[1744620360853,3e-07,84835.0,84834.0,0.4138077]
[1744620361708,3e-07,84835.0,84834.0,0.41380769]
[1744620361903,3e-07,84835.0,84834.0,0.00606315]
[1744620362185,3e-07,84835.0,84834.0,0.00097918]
[1744620362388,3e-07,84835.0,84834.0,0.00618446]
[1744620363243,0.1886013,84835.0,84834.0,0.00618446]
[1744620363752,0.1886013,84835.0,84834.0,0.00097918]
[1744620366211,3e-07,84835.0,84834.0,0.00097918]
[1744620366639,3e-07,84835.0,84834.0,0.00618223]
[1744620366971,3e-07,84835.0,84834.0,0.00097918]
[1744620367171,0.96994184,84835.0,84834.0,0.00618223]
[1744620367300,1.11142184,84835.0,84834.0,0.00097918]
[1744620367520,1.21142184,84835.0,84834.0,0.00097918]
[1744620368684,1.21142184,84835.0,84834.0,1.8e-07]
[1744620368832,0.188677,84801.0,84800.0,0.0008442]
[1744620369169,0.188677,84801.0,84800.0,0.00098252]
[1744620371090,0.14148,84808.0,84800.0,0.00098252]
[1744620371271,0.14148,84808.0,84805.0,0.200457]
[1744620371682,0.0465,84832.0,84805.0,0.200457]
[1744620371683,0.011789,84819.0,84816.0,0.01179]
[1744620371879,0.14148,84819.0,84817.0,0.188641]
[1744620372090,0.188615,84829.0,84821.0,0.011789]
[1744620372091,0.34,84826.0,84821.0,0.011789]
[1744620372282,0.188603,84834.0,84821.0,0.011789]
[1744620372283,0.14152,84832.0,84830.0,0.011788]
[1744620372537,0.011788,84830.0,84826.0,0.011788]
[1744620372828,0.4165,84833.0,84826.0,0.011788]
[1744620373031,0.0117873,84835.0,84832.0,0.011788]
[1744620373032,3e-07,84835.0,84832.0,0.011788]
[1744620373245,3e-07,84835.0,84833.0,0.188605]
[1744620374203,5e-07,84845.0,84842.0,0.011786]
[1744620374401,5e-07,84845.0,84839.0,0.011787]
[1744620374402,0.0404221,84869.0,84858.0,0.18855]
[1744620374610,0.0404221,84869.0,84858.0,0.32338755]
[1744620374790,0.0404221,84869.0,84858.0,0.32393239]
[1744620374992,0.00246097,84859.0,84858.0,0.30939154]
[1744620378049,0.00246097,84859.0,84856.0,0.200337]
[1744620380365,0.00246097,84859.0,84842.0,0.188584]
[1744620380569,0.011786,84846.0,84840.0,0.011786]
[1744620380683,0.011785,84849.0,84844.0,0.011786]